fUSD/lending_fUSD_20240912
["ID","MTS","AMOUNT","RATE_DAILY","PERIOD"]
[337861799,1726164670247,-517.01,0.00014794,2]
[337861800,1726164670261,-3858.58,0.00014794,2]
[337861801,1726164670273,-556.48,0.00014794,2]
[337861802,1726164670284,-517.01,0.00014794,2]
[337861803,1726164670296,-2404.45,0.00014794,2]
[337861804,1726164670309,-2818.96,0.00014794,2]
[337861805,1726164670321,-860.55,0.00014794,2]
[337861806,1726164670332,-556.48,0.00014794,2]
[337861807,1726164670344,-3858.58,0.00014794,2]
[337861808,1726164670356,-2404.45,0.00014794,2]
[337861809,1726164670369,-517.01,0.00014794,2]
[337861810,1726164670381,-2100.00570294,0.00014794,2]
[337861811,1726164670393,-3858.58,0.00014794,2]
[337861812,1726164670405,-2818.96,0.00014794,2]
[337861813,1726164670418,-517.01,0.00014794,2]
[337861814,1726164670428,-2404.45,0.00014794,2]
[337861815,1726164670439,-556.48,0.00014794,2]
[337861816,1726164670451,-3858.58,0.00014794,2]
[337861817,1726164670462,-2818.96,0.00014794,2]
[337861818,1726164670475,-500.0,0.00014794,2]
[337861819,1726164670487,-860.55,0.00014794,2]
[337861820,1726164670500,-500.0,0.00014794,2]
[337861821,1726164670513,-517.01,0.00014794,2]
[337861822,1726164670526,-2404.45,0.00014794,2]
[337861823,1726164670540,-3858.58,0.00014794,2]
[337861824,1726164670553,-500.0,0.00014794,2]
[337861825,1726164670565,-2818.96,0.00014794,2]
[337861826,1726164670576,-500.0,0.00014794,2]
[337861827,1726164670587,-860.55,0.00014794,2]
[337861828,1726164670597,-517.01,0.00014794,2]
[337861829,1726164670608,-2404.45,0.00014794,2]
[337861830,1726164670619,-556.48,0.00014794,2]
[337861831,1726164670633,-500.0,0.00014794,2]
[337861832,1726164670645,-2818.96,0.00014794,2]
[337861833,1726164670657,-500.0,0.00014794,2]
[337861834,1726164670670,-517.01,0.00014794,2]
[337861835,1726164670681,-860.55,0.00014794,2]
[337861836,1726164670693,-2404.45,0.00014794,2]
[337861837,1726164670705,-3858.58,0.00014794,2]
[337861838,1726164670717,-517.01,0.00014794,2]
[337861839,1726164670730,-385.9398427,0.00014794,2]
[337861840,1726164670741,-2819.04952334,0.00014794,2]
[337861841,1726164670751,-860.55,0.00014794,2]
[337861842,1726164670762,-556.48,0.00014794,2]
[337861843,1726164670773,-500.0,0.00014794,2]
[337861844,1726164670784,-2404.45,0.00014794,2]
[337861845,1726164670794,-3858.58,0.00014794,2]
[337861846,1726164670806,-517.01,0.00014794,2]
[337861847,1726164670816,-860.55,0.00014794,2]
[337861848,1726164670828,-556.48,0.00014794,2]
[337861849,1726164670838,-500.0,0.00014794,2]
[337861850,1726164670849,-2404.45,0.00014794,2]
[337861851,1726164670860,-3858.58,0.00014794,2]
[337861852,1726164670871,-1524.06,0.00014794,2]
[337861853,1726164670882,-517.01,0.00014794,2]
[337861854,1726164670893,-860.55,0.00014794,2]
[337861855,1726164670904,-500.0,0.00014794,2]
[337861856,1726164670916,-500.0,0.00014794,2]
[337861857,1726164670927,-2173.65144583,0.00014794,2]
[337861858,1726164671882,-230.79855417,0.00014794,2]
[337861859,1726164671893,-556.48,0.00014794,2]
[337861860,1726164671904,-415.54587384,0.00014794,2]
[337861861,1726164672693,-101.61101945,0.00014794,2]
[337861862,1726164672703,-1495.7699544,0.00014794,2]
[337861863,1726164672833,-28.2900456,0.00014794,2]
[337861864,1726164672844,-702.7448469,0.00014794,2]
[337861865,1726164672867,-2008.43148739,0.00014794,2]
[337861866,1726164672881,-658.94883045,0.00014794,2]
[337861867,1726164672906,-488.45483526,0.00014794,2]
[337861868,1726164672919,-860.55,0.00014794,2]
[337861869,1726164672931,-118.51710133,0.00014794,2]
[337861870,1726164672946,-456.83235771,0.00014794,2]
[337861871,1726164672957,-2404.45,0.00014794,2]
[337861872,1726164672967,-556.48,0.00014794,2]
[337861873,1726164672978,-500.0,0.00014794,2]
[337861874,1726164672988,-1348.39664229,0.00014794,2]
[337861875,1726164715443,600.0,0.00010958,2]
[337861879,1726164766382,500.0,0.00010958,2]
[337861880,1726164806047,394.5923,0.00012144,2]
[337861882,1726164900426,599.92,0.00011539,2]
[337861884,1726164969327,1050.0,0.00011,2]
[337861885,1726165015134,154.97,0.00010959,2]
[337861904,1726165506414,577.62,0.00010858,2]
[337861905,1726165521203,1005.84,0.00014253,50]
[337861911,1726165578748,151.94,0.00010959,2]
[337861914,1726165638026,161.31450855,0.0001421,120]
[337861915,1726165638682,608.90317969,0.0001421,120]
[337861916,1726165638948,810.0,0.0001421,120]
[337861917,1726165638974,976.11923019,0.0001421,120]
[337861918,1726165639083,959.98143795,0.0001421,120]
[337861919,1726165639109,605.23995412,0.0001421,120]
[337861920,1726165639295,500.7,0.0001421,120]
[337861921,1726165639402,158.48003332,0.0001421,120]
[337861922,1726165639427,294.41943455,0.0001421,120]
[337861924,1726165642219,501.21798829,0.0001421,120]
[337861925,1726165643262,158.29229285,0.0001421,120]
[337861926,1726165643825,541.67972166,0.0001421,120]
[337861927,1726165643929,155.27615415,0.0001421,120]
[337861929,1726165644606,944.93255078,0.0001421,120]
[337861930,1726165645562,385.22841644,0.0001421,120]
[337861931,1726165645974,185.46273052,0.0001421,120]
[337861932,1726165646386,358.84240751,0.0001421,120]
[337861956,1726165744232,344.82,0.00011819,2]
[337861959,1726165808918,250.0,0.00011813,2]
[337861970,1726165831901,-200.0,0.000125,4]
[337861971,1726165831910,-500.0,0.000126,4]
[337861972,1726165831919,-135.76890851,0.00012683,2]
[337861974,1726165831936,-40.46109149,0.00012683,2]
[337861976,1726165831946,-700.0,0.000127,4]
[337861978,1726165831955,-161.36,0.00012718,2]
[337861979,1726165831964,-399.71,0.00012732,2]
[337861980,1726165831974,-399.71,0.00012735,2]
[337861981,1726165831983,-399.71,0.00012738,2]
[337861982,1726165831992,-300.0,0.00012741,2]
[337861983,1726165832001,-1487.14,0.00012742,2]
[337861984,1726165832011,-286.93,0.00012742,2]
[337861985,1726165832020,-399.71,0.00012742,2]
[337861986,1726165832030,-399.71,0.00012745,2]
[337861987,1726165832039,-399.71,0.00012748,2]
[337861988,1726165832048,-399.71,0.00012752,2]
[337861989,1726165832058,-399.71,0.00012755,2]
[337861990,1726165832067,-399.71,0.00012758,2]
[337861991,1726165832077,-399.71,0.00012762,2]
[337861992,1726165832087,-399.71,0.00012765,2]
[337861993,1726165832096,-250.0,0.00012768,2]
[337861994,1726165832106,-399.71,0.00012768,2]
[337861995,1726165832116,-399.71,0.00012772,2]
[337861996,1726165832126,-399.71,0.00012775,2]
[337861997,1726165832135,-399.71,0.00012778,2]
[337861998,1726165832144,-399.71,0.00012782,2]
[337861999,1726165832154,-399.71,0.00012785,2]
[337862000,1726165832163,-150.0,0.00012788,2]
[337862001,1726165832174,-399.71,0.00012788,2]
[337862002,1726165832183,-399.71,0.00012792,2]
[337862003,1726165832193,-399.71,0.00012795,2]
[337862004,1726165832203,-5976.1879,0.000128,2]
[337862005,1726165832212,-1000.0,0.000128,4]
[337862006,1726165832221,-20593.64,0.00012899,2]
[337862007,1726165832231,-228.91329271,0.00012899,2]
[337862008,1726165832239,-2540.060903,0.00012899,2]
[337862009,1726165832264,-6005.0,0.00012899,2]
[337862011,1726165832275,-428.45648914,0.00012899,2]
[337862013,1726165832286,-711.01118688,0.00012899,2]
[337862016,1726165832297,-1072.56003142,0.00012899,2]
[337862018,1726165832306,-755.35069219,0.000129,2]
[337862020,1726165832321,-1092.85082834,0.000129,2]
[337862022,1726165832332,-33975.23547947,0.000129,2]
[337862024,1726165832342,-6265.8528,0.000129,2]
[337862026,1726165832351,-500.0,0.000129,2]
[337862027,1726165832360,-1000.0,0.000129,2]
[337862028,1726165832370,-1200.0,0.000129,4]
[337862029,1726165832379,-6276.7835,0.000129,2]
[337862030,1726165832388,-221.61260684,0.000129,2]
[337862032,1726165832398,-2941.9125141,0.000129,2]
[337862035,1726165832407,-177.56180833,0.00012908,2]
[337862038,1726165832416,-500.0,0.00012973,2]
[337862041,1726165832425,-153.48,0.0001299,2]
[337862042,1726165832435,-153.48,0.0001299,2]
[337862045,1726165832444,-153.48,0.0001299,2]
[337862047,1726165832454,-153.48,0.0001299,2]
[337862049,1726165832463,-153.48,0.0001299,2]
[337862051,1726165832472,-153.48,0.0001299,2]
[337862053,1726165832481,-158.31767819,0.0001299,2]
[337862055,1726165832490,-108115.54210827,0.00012997,2]
[337862057,1726165832500,-187.0994357,0.00012999,2]
[337862059,1726165832509,-500.0,0.00012999,2]
[337862061,1726165832518,-500.0,0.00012999,2]
[337862063,1726165832527,-500.0,0.00012999,2]
[337862065,1726165832536,-500.0,0.00012999,2]
[337862067,1726165832545,-500.0,0.00012999,2]
[337862069,1726165832554,-500.0,0.00012999,2]
[337862071,1726165832563,-500.0,0.00012999,2]
[337862073,1726165832572,-500.0,0.00012999,2]
[337862075,1726165832582,-335.16780938,0.00012999,2]
[337862077,1726165832591,-500.0,0.00012999,2]
[337862078,1726165832600,-500.0,0.00012999,2]
[337862080,1726165832609,-553.61224152,0.00012999,2]
[337862082,1726165832619,-500.0,0.00012999,2]
[337862084,1726165832628,-500.0,0.00012999,2]
[337862086,1726165832638,-500.0,0.00012999,2]
[337862088,1726165832647,-500.0,0.00012999,2]
[337862090,1726165832656,-500.0,0.00012999,2]
[337862092,1726165832665,-500.0,0.00012999,2]
[337862094,1726165832676,-1100.0,0.00013,2]
[337862096,1726165832686,-22273.73253339,0.00013,2]
[337862098,1726165832700,-1020288.03876232,0.00013,2]
[337862100,1726165832711,-52594.15252274,0.00013,2]
[337862102,1726165832724,-4548.09399337,0.00013,2]
[337862104,1726165832736,-486.59595781,0.00013,2]
[337862106,1726165832747,-2686.65209013,0.00013,2]
[337862109,1726165832757,-8774.31523528,0.00013,2]
[337862111,1726165832769,-536.83568415,0.00013,2]
[337862113,1726165832789,-978.62989679,0.00013,2]
[337862116,1726165832800,-686.70513767,0.00013,2]
[337862118,1726165832810,-1132.38722525,0.00013,2]
[337862120,1726165832821,-7211.0,0.00013,2]
[337862122,1726165832832,-69105.87262194,0.00013,2]
[337862124,1726165832844,-303.30868148,0.00013,2]
[337862626,1726165838143,-292.86602164,0.00012718,2]
[337862629,1726165838162,-3775.09057148,0.00012718,2]
[337862631,1726165838171,-190432.02546179,0.00013,2]
[337862633,1726165838184,-630971.72911202,0.00013,2]
[337862637,1726165838213,-2644.17619719,0.00013,2]
[337862639,1726165838224,-925.56170541,0.00013,2]
[337862815,1726165839887,-1539.999995,0.00013,2]
[337862817,1726165839899,-435.92970156,0.00013,2]
[337862819,1726165839910,-5859.46811615,0.00013,2]
[337862842,1726165840126,-6564.8223725,0.00013,2]
[337862846,1726165840163,-1505.04594099,0.00013,2]
[337863128,1726165843030,-1503.0,0.00013,2]
[337863135,1726165843125,-549.87661429,0.00013,2]
[337863182,1726165843649,-1109.25964547,0.00013,2]
[337863184,1726165843661,-642.70249532,0.00013,2]
[337863188,1726165843693,-382.92113158,0.00013,2]
[337863190,1726165843708,-603.56506181,0.00013,2]
[337863192,1726165843720,-484666.08024162,0.00013,2]
[337863345,1726165845945,-2361.00320181,0.00013,2]
[337864437,1726165934119,500.0,0.00010958,2]
[337864438,1726165934474,500.0,0.00010958,2]
[337864439,1726165937299,500.0,0.0001421,120]
[337864440,1726165937777,500.0,0.0001331,30]
[337864441,1726165938939,500.0,0.0001421,120]
[337864442,1726165939451,500.0,0.0001331,30]
[337864443,1726165941231,500.0,0.0001421,120]
[337864444,1726165941697,500.0,0.0001331,30]
[337864445,1726165943788,500.0,0.0001421,120]
[337864446,1726165943987,500.0,0.0001421,120]
[337864447,1726165944016,500.0,0.0001331,30]
[337864448,1726165944042,500.0,0.0001421,120]
[337864449,1726165944151,500.0,0.0001331,30]
[337864450,1726165944214,500.0,0.0001331,30]
[337864451,1726165944238,500.0,0.0001421,120]
[337864452,1726165944740,500.0,0.0001331,30]
[337864454,1726165945512,500.0,0.0001421,120]
[337864455,1726165945839,500.0,0.0001421,120]
[337864456,1726165945944,500.0,0.0001331,30]
[337864457,1726165946295,500.0,0.0001331,30]
[337864458,1726165946635,500.0,0.0001421,120]
[337864459,1726165946676,500.0,0.0001421,120]
[337864460,1726165947116,500.0,0.0001331,30]
[337864461,1726165947149,500.0,0.0001421,120]
[337864462,1726165947206,500.0,0.0001331,30]
[337864463,1726165947608,500.0,0.0001331,30]
[337864464,1726165948019,500.0,0.0001421,120]
[337864465,1726165948473,500.0,0.0001331,30]
[337864466,1726166013801,556.43,0.0001084,2]
[337864467,1726166083429,161.36,0.00012058,2]
[337864468,1726166089729,156.7,0.00010959,2]
[337864470,1726166137028,250.0,0.00012089,2]
[337864471,1726166200785,851.15,0.00012126,2]
[337864472,1726166211879,1000.0,0.0001204,2]
[337864474,1726166314584,407.3,0.00012038,2]
[337864475,1726166356327,250.0,0.00011953,2]
[337864476,1726166445826,172.07,0.00011988,2]
[337864479,1726166540268,536.3,0.00010055,2]
[337864481,1726166547921,3773.18,0.00011926,2]
[337864485,1726166562448,505.66,0.00011967,2]
[337864486,1726166588499,200.0,0.00011958,2]
[337864488,1726166602983,1216.69,0.00012089,2]
[337864489,1726166619846,438.09,0.00010959,2]
[337864490,1726166656541,172.53,0.00011915,2]
[337864491,1726166657103,172.53,0.0001193,2]
[337864492,1726166657313,172.53,0.00011945,2]
[337864493,1726166657728,172.53,0.0001196,2]
[337864494,1726166657993,172.53,0.00011975,2]
[337864495,1726166711604,150.0,0.00011688,2]
[337864496,1726166711921,150.0,0.0001178,2]
[337864497,1726166712250,150.0,0.00011873,2]
[337864498,1726166712698,150.0,0.00011966,2]
[337864499,1726166713106,150.0,0.00012059,2]
[337864500,1726166713314,150.0,0.00012151,2]
[337864501,1726166725125,150.0,0.00011688,2]
[337864502,1726166725297,150.0,0.00011756,2]
[337864503,1726166725570,150.0,0.00011824,2]
[337864504,1726166725889,150.0,0.00011893,2]
[337864505,1726166726208,150.0,0.00011961,2]
[337864506,1726166726579,150.0,0.00012029,2]
[337864507,1726166726904,150.0,0.00012098,2]
[337864508,1726166730596,230.27365888,0.00011688,2]
[337864511,1726166738097,150.0,0.00011688,2]
[337864512,1726166738234,250.0,0.00011773,2]
[337864513,1726166738449,150.0,0.00012012,2]
[337864514,1726166744881,150.0,0.00011688,2]
[337864515,1726166775919,1050.0,0.00011,2]
[337864516,1726166780489,461.74,0.00011709,2]
[337864517,1726166787531,200.0,0.00011709,2]
[337864518,1726166830554,198.3,0.00011686,2]
[337864526,1726166889137,250.0,0.00011751,2]
[337864527,1726167000433,250.0,0.00011736,2]
[337864528,1726167007925,162.72,0.00012156,2]
[337864542,1726167032138,-150.0,0.00012166,2]
[337864544,1726167032149,-184.44822387,0.00012203,2]
[337864545,1726167032158,-150.0,0.00012234,2]
[337864546,1726167032167,-150.0,0.00012244,2]
[337864547,1726167032177,-1573.17263047,0.00012303,2]
[337864548,1726167032188,-644.4503927,0.00012303,2]
[337864549,1726167032211,-641.58899379,0.00012303,2]
[337864550,1726167032220,-150.0,0.00012303,2]
[337864551,1726167032230,-174.6276709,0.00012319,2]
[337864552,1726167032241,-361.6723291,0.00012319,2]
[337864553,1726167032250,-216.30053767,0.00012333,2]
[337864554,1726167032259,-150.0,0.00012337,2]
[337864555,1726167032268,-13.90823383,0.00012337,2]
[337864556,1726167032279,-136.09176617,0.00012337,2]
[337864557,1726167032292,-499.99,0.00012343,2]
[337864558,1726167032303,-3885.98440656,0.00012343,2]
[337864559,1726167032321,-7384.92556584,0.00012343,2]
[337864560,1726167032332,-637.70410917,0.00012343,2]
[337864561,1726167032343,-5236.44719773,0.00012343,2]
[337864562,1726167032357,-672.3424,0.00012343,2]
[337864563,1726167032383,-1299.333284,0.00012343,2]
[337864564,1726167032397,-2031.63252722,0.00012343,2]
[337864565,1726167032410,-784.34351086,0.00012343,2]
[337864566,1726167032421,-5373.36897696,0.00012343,2]
[337864567,1726167032432,-363.76455997,0.00012343,2]
[337864568,1726167032444,-17137.15346169,0.00012343,2]
[337864569,1726167032454,-150.0,0.0001243,2]
[337864570,1726167032464,-150.0,0.00012438,2]
[337864571,1726167032475,-1517.42,0.00012438,2]
[337864572,1726167032486,-499.99,0.00012438,2]
[337864573,1726167032495,-150.0,0.00012466,2]
[337864574,1726167032504,-6411.78,0.00012467,2]
[337864575,1726167032513,-168.865,0.00012468,2]
[337864576,1726167032523,-167.663,0.00012468,2]
[337864578,1726167032536,-150.0,0.00012523,2]
[337864580,1726167032546,-150.0,0.00012615,2]
[337864582,1726167032556,-373.86105021,0.00012641,2]
[337864584,1726167032567,-150.0,0.00012662,2]
[337864586,1726167032576,-532.47,0.000127,2]
[337864589,1726167032586,-150.0,0.00012708,2]
[337864591,1726167032595,-150.99,0.00012725,2]
[337864593,1726167032606,-9999.99,0.00012725,2]
[337864613,1726167032849,-577.0052,0.00012797,2]
[337864614,1726167032859,-214.072,0.00012797,2]
[337864615,1726167032869,-5284.2917,0.000128,2]
[337864616,1726167032879,-1143.8308,0.000128,2]
[337864617,1726167032890,-150.0,0.00012801,2]
[337864618,1726167032901,-150.0,0.00012894,2]
[337864619,1726167032912,-38984.5027,0.00012897,2]
[337864620,1726167032921,-3745.7916,0.00012897,2]
[337864621,1726167032930,-1209.4532,0.00012897,2]
[337864622,1726167032939,-2500.0,0.00012899,2]
[337864623,1726167032949,-2076.3399,0.000129,2]
[337864624,1726167032958,-1263.1381,0.000129,2]
[337864625,1726167032968,-456.9474,0.000129,2]
[337864626,1726167032978,-15795.5488,0.000129,2]
[337864627,1726167032987,-8876.80715853,0.000129,2]
[337864628,1726167032999,-3343.09734147,0.000129,2]
[337864629,1726167033009,-11668.04341853,0.000129,2]
[337864630,1726167033035,-1367.57781629,0.000129,2]
[337864631,1726167033050,-10778.66962938,0.000129,2]
[337864632,1726167033062,-1550.2362358,0.000129,2]
[337864633,1726167033072,-1398.1401,0.000129,2]
[337864634,1726167033081,-500.0,0.000129,2]
[337864635,1726167033090,-185.73578068,0.000129,2]
[337864636,1726167033100,-172.2668,0.000129,2]
[337864637,1726167033109,-195.41495944,0.000129,2]
[337864638,1726167033119,-352.56822616,0.000129,2]
[337864639,1726167033128,-164.63967503,0.000129,2]
[337864640,1726167033138,-661.32323266,0.000129,2]
[337864641,1726167033150,-6838.67676734,0.000129,2]
[337864642,1726167033159,-120.62526564,0.000129,2]
[337864643,1726167033171,-1840.64974376,0.000129,2]
[337864644,1726167033181,-159.95581706,0.00012973,2]
[337864645,1726167033191,-500.0,0.00012973,2]
[337864646,1726167033200,-199.2510834,0.00012986,2]
[337864647,1726167033210,-150.0,0.00012986,2]
[337864648,1726167033220,-556.17726311,0.0001299,2]
[337864656,1726167038092,-2908.70273689,0.0001299,2]
[337864657,1726167038102,-3464.88,0.0001299,2]
[337864658,1726167038111,-473.484,0.0001299,2]
[337864659,1726167038120,-157.21,0.0001299,2]
[337864660,1726167038130,-500.0,0.00012999,2]
[337864661,1726167038139,-500.0,0.00012999,2]
[337864662,1726167038148,-500.0,0.00012999,2]
[337864663,1726167038157,-181.93130415,0.00012999,2]
[337864664,1726167038168,-500.0,0.00012999,2]
[337864665,1726167038177,-307.74756379,0.00012999,2]
[337864666,1726167038187,-500.0,0.00012999,2]
[337864667,1726167038196,-369.92188152,0.00012999,2]
[337864668,1726167038205,-308.26745838,0.00012999,2]
[337864669,1726167038214,-142528.80936534,0.00013,2]
[337864670,1726167038223,-611543.29409191,0.00013,2]
[337864671,1726167038246,-282.75145112,0.00013,2]
[337864672,1726167038257,-2698.3,0.00013,2]
[337864673,1726167038268,-902.63081299,0.00013,2]
[337864674,1726167038279,-576.87446552,0.00013,2]
[337864675,1726167038290,-918.803945,0.00013,2]
[337864676,1726167038301,-646.41349221,0.00013,2]
[337864677,1726167038315,-615.002,0.00013,2]
[337864678,1726167038327,-250.485,0.00013,2]
[337864679,1726167038337,-3216.2561326,0.00013,2]
[337864680,1726167038360,-5080.6888063,0.00013,2]
[337864681,1726167038372,-40986.18537841,0.00013,2]
[337864689,1726167040147,-719.26763437,0.00013,2]
[337864690,1726167040214,-395.92311807,0.00013,2]
[337864691,1726167040226,-625.96902228,0.00013,2]
[337864692,1726167040237,-687.02021086,0.00013,2]
[337864693,1726167040248,-1007.52312096,0.00013,2]
[337864694,1726167040259,-585.9312412,0.00013,2]
[337864695,1726167040270,-305.17769827,0.00013,2]
[337864696,1726167040281,-270.54,0.00013,2]
[337864697,1726167040407,-1383.75,0.00013,2]
[337864698,1726167040420,-477.21,0.00013,2]
[337864765,1726167043829,-300.0,0.00013,2]
[337864767,1726167043840,-412548.6292,0.00013,2]
[337864770,1726167043865,-3020.59105029,0.00013,2]
[337864813,1726167149612,500.0,0.0001421,120]
[337864814,1726167150067,500.0,0.0001421,120]
[337864815,1726167150992,500.0,0.0001421,120]
[337864816,1726167151068,500.0,0.0001331,30]
[337864817,1726167151505,500.0,0.0001331,30]
[337864818,1726167151977,691.57777924,0.0001331,30]
[337864819,1726167166141,490.36,9.775e-05,2]
[337864820,1726167166339,490.36,0.00012039,2]
[337864821,1726167170987,215.76,0.00010959,2]
[337864822,1726167199040,500.0,0.00010958,2]
[337864823,1726167229661,250.0,0.00011682,2]
[337864824,1726167296501,840.0,0.00011662,2]
[337864826,1726167324209,230.87,0.00011649,2]
[337864829,1726167506646,315.52,0.00011659,2]
[337864830,1726167529650,250.0,0.00011659,2]
[337864831,1726167530229,250.0,0.00011665,2]
[337864832,1726167695297,161.59,0.00011804,2]
[337864833,1726167695931,161.59,0.00011807,2]
[337864834,1726167696246,161.59,0.00011811,2]
[337864835,1726167696456,161.59,0.00011814,2]
[337864836,1726167696538,155.68,0.00010959,2]
[337864837,1726167696691,161.59,0.00011817,2]
[337864838,1726167697625,161.59,0.0001182,2]
[337864839,1726167697820,161.59,0.00011823,2]
[337864840,1726167697946,161.59,0.00011826,2]
[337864841,1726167698113,161.59,0.00011829,2]
[337864842,1726167698329,161.59,0.00011832,2]
[337864843,1726167698579,161.59,0.00011835,2]
[337864844,1726167698825,161.59,0.00011838,2]
[337864845,1726167699099,161.59,0.00011842,2]
[337864846,1726167699329,161.59,0.00011845,2]
[337864847,1726167699557,161.59,0.00011848,2]
[337864848,1726167699837,161.59,0.00011851,2]
[337864849,1726167700035,161.59,0.00011854,2]
[337864850,1726167700438,161.59,0.00011857,2]
[337864851,1726167700664,161.59,0.0001186,2]
[337864852,1726167700898,161.59,0.00011863,2]
[337864853,1726167740156,449.01,0.00010167,2]
[337864854,1726167784985,250.0,0.00012081,2]
[337864855,1726167837666,328.0,0.00012031,2]
[337864856,1726167856454,246.99,0.00012051,2]
[337864857,1726167918561,150.0,0.00011688,2]
[337864858,1726167919132,150.0,0.00011832,2]
[337864859,1726167919272,150.0,0.00011976,2]
[337864860,1726167919518,150.0,0.00012121,2]
[337864878,1726167980042,-150.0,0.00012265,2]
[337864879,1726167980064,-2897.03848304,0.00012276,2]
[337864880,1726167980085,-500.0,0.00012276,2]
[337864881,1726167980106,-500.0,0.00012276,2]
[337864882,1726167980128,-500.0,0.00012276,2]
[337864883,1726167980151,-500.0,0.00012276,2]
[337864884,1726167980174,-500.0,0.00012276,2]
[337864885,1726167980195,-500.0,0.00012276,2]
[337864886,1726167980217,-500.0,0.00012276,2]
[337864887,1726167980238,-422.78104947,0.00012276,2]
[337864888,1726167980263,-150.0,0.00012409,2]
[337864889,1726167980284,-449.01,0.00012431,2]
[337864890,1726167980304,-195.88,0.00012447,2]
[337864891,1726167980326,-499.99,0.00012447,2]
[337864892,1726167980347,-150.0,0.00012553,2]
[337864893,1726167980367,-255.25,0.00012675,2]
[337864894,1726167980389,-150.0,0.00012698,2]
[337864895,1726167980411,-150.0,0.00012799,2]
[337864896,1726167980431,-2701.32,0.000128,2]
[337864897,1726167980451,-372.73046749,0.000128,2]
[337864898,1726167984361,-10000.0,0.000128,2]
[337864899,1726167985242,-10000.0,0.000128,2]
[337864900,1726167986310,-1629.43363251,0.000128,2]
[337864901,1726167986330,-6498.0575,0.000128,2]
[337864902,1726167986351,-955.2,0.000128,2]
[337864903,1726167986371,-150.34,0.000128,2]
[337864904,1726167986392,-150.0,0.00012842,2]
[337864905,1726167986414,-373.86105021,0.00012854,2]
[337864906,1726167986434,-243.10781728,0.000129,2]
[337864907,1726167986637,-173.81368272,0.000129,2]
[337864908,1726167986657,-9826.18631728,0.000129,2]
[337864909,1726167987140,-9639.61998272,0.000129,2]
[337864910,1726167987171,-360.38001728,0.000129,2]
[337864911,1726167990733,-1569.78818272,0.000129,2]
[337864912,1726167990754,-1000.0,0.000129,2]
[337864913,1726167990776,-2500.0,0.000129,2]
[337864914,1726167990797,-1007.0,0.000129,2]
[337864915,1726167990818,-1000.0,0.000129,3]
[337864916,1726167990839,-1000.0,0.000129,2]
[337864917,1726167990862,-665.0,0.000129,2]
[337864918,1726167990882,-546.4415,0.000129,2]
[337864919,1726167990903,-167.49853668,0.000129,2]
[337864920,1726167990925,-329.06367774,0.000129,2]
[337864921,1726167990950,-215.20810286,0.000129,2]
[337864923,1726168034768,500.0,0.0001421,120]
[337864924,1726168035016,-394.57,0.0001287,2]
[337864925,1726168035037,-9605.43,0.000129,2]
[337864926,1726168035272,500.0,0.0001421,120]